[Event "XXVII RUS-chT Women 2020"]
[Site "Sochi"]
[Date "2020.11.20"]
[Round "2.16"]
[White "Tinina, Kristina"]
[Black "Mikheeva, Galina"]
[Result "1-0"]
[ECO "C61"]
[WhiteElo "1678"]
[BlackElo "1943"]
[Annotator "NA"]
[PlyCount "127"]
[EventDate "2020.11.19"]
[EventType "team-tourn"]
[EventCountry "RUS"]
[SourceTitle "playchess.com"]
[Source "ChessBase"]
[SourceQuality "1"]
[TimeControl "40/5400+30:1800+30"]

1. e4 {[%emt 0:00:00]} e5 {[%emt 0:00:00]} 2. Nf3 {[%emt 0:00:00]} Nc6 {[%emt 0:00:00]} 3. Bb5 {[%emt 0:00:29]} Nd4 {[%emt 0:00:00]} 4. Bc4 {[%emt 0:07:28]} Nxf3+ {[%emt 0:00:57]} 5. Qxf3 {[%emt 0:00:14]} Qf6 {[%emt 0:00:05]} 6. Qg3 {[%emt 0:04:41]} Bc5 {[%emt 0:01:45]} 7. d3 {[%emt 0:12:35]} h6 {[%emt 0:00:28]} 8. f4 {[%emt 0:19:47]} exf4 {[%emt 0:08:57]} 9. Bxf4 {[%emt 0:09:40]} d6 {[%emt 0:01:38]} 10. e5 {[%emt 0:12:15]} dxe5 {[%emt 0:00:14]} 11. Bxe5 {[%emt 0:00:09]} Bf2+ {[%emt 0:00:17]} 12. Qxf2 {[%emt 0:04:38]} Qxe5+ {[%emt 0:00:07]} 13. Kd2 {[%emt 0:01:00]} Qg5+ {[%emt 0:15:33]} 14. Kc3 {[%emt 0:00:09]} Be6 {[%emt 0:02:21]} 15. Re1 {[%emt 0:02:22]} Ke7 {[%emt 0:04:54]} 16. Nd2 {[%emt 0:04:45]} Nf6 {[%emt 0:09:33]} 17. Nf3 {[%emt 0:03:35]} Qa5+ {[%emt 0:01:35]} 18. Kb3 {[%emt 0:03:40]} Nd7 {[%emt 0:12:36]} 19. a3 {[%emt 0:02:48]} Rae8 {[%emt 0:01:46]} 20. Bxe6 {[%emt 0:02:14]} fxe6 {[%emt 0:04:34]} 21. Qd4 {[%emt 0:01:48]} Qb6+ {[%emt 0:02:27]} 22. Qxb6 {[%emt 0:00:28]} Nxb6 {[%emt 0:01:44]} 23. Ne5 {[%emt 0:00:25]} Rhg8 {[%emt 0:03:33]} 24. Rf1 {[%emt 0:00:57]} Kd6 {[%emt 0:01:22]} 25. Ng6 {[%emt 0:00:33]} e5 {[%emt 0:01:14]} 26. Rae1 {[%emt 0:00:45]} Re6 {[%emt 0:06:47]} 27. Nh4 {[%emt 0:00:11]} Rf6 {[%emt 0:05:04]} 28. Nf5+ {[%emt 0:00:29]} Ke6 {[%emt 0:00:07]} 29. Nd4+ {[%emt 0:00:56]} Kd5 {[%emt 0:00:17]} 30. Nf3 {[%emt 0:00:06]} Nd7 {[%emt 0:02:15]} 31. Kc3 {[%emt 0:04:45]} Rgf8 {[%emt 0:02:38]} 32. Rf2 {[%emt 0:00:17]} g5 {[%emt 0:03:52]} 33. Rfe2 {[%emt 0:00:14]} Rf5 {[%emt 0:00:47]} 34. Re4 {[%emt 0:00:53]} Re8 {[%emt 0:03:49]} 35. d4 {[%emt 0:00:57]} c5 {[%emt 0:02:38]} 36. dxe5 {[%emt 0:00:50]} Nxe5 {[%emt 0:00:01]} 37. Nxe5 {[%emt 0:00:52]} Rfxe5 {[%emt 0:00:14]} 38. Rxe5+ {[%emt 0:00:11]} Rxe5 {[%emt 0:00:00]} 39. Rd1+ {[%emt 0:00:23]} Kc6 {[%emt 0:00:40]} 40. Rd2 {[%emt 0:00:00]} Re3+ {[%emt 0:00:00]} 41. Rd3 {[%emt 0:01:03]} Rxd3+ {[%emt 0:08:15]} 42. Kxd3 {[%emt 0:00:32]} Kd5 {[%emt 0:00:02]} 43. g4 {[%emt 0:09:22]} Ke5 {[%emt 0:05:26]} 44. Ke3 {[%emt 0:00:43]} b5 {[%emt 0:01:46]} 45. b4 {[%emt 0:08:17]} Kd5 {[%emt 0:07:18]} 46. Kd3 {[%emt 0:01:31]} c4+ {[%emt 0:02:08]} 47. Ke3 {[%emt 0:00:12]} c3 {[%emt 0:04:27]} 48. Kd3 {[%emt 0:00:56]} Ke5 {[%emt 0:00:03]} 49. Ke3 {[%emt 0:03:21]} a6 {[%emt 0:01:51]} 50. h3 {[%emt 0:02:43]} Kd5 {[%emt 0:00:06]} 51. Kd3 {[%emt 0:00:08]} Ke5 {[%emt 0:00:10]} 52. Kxc3 {[%emt 0:05:21]} Kf4 {[%emt 0:01:06]} 53. Kd4 {[%emt 0:00:22]} Kg3 {[%emt 0:00:02]} 54. c4 {[%emt 0:00:22]} bxc4 {[%emt 0:00:05]} 55. Kxc4 {[%emt 0:00:02]} Kxh3 {[%emt 0:00:09]} 56. a4 {[%emt 0:00:33]} Kxg4 {[%emt 0:00:09]} 57. b5 {[%emt 0:00:22]} axb5+ {[%emt 0:00:06]} 58. axb5 {[%emt 0:00:02]} Kh3 {[%emt 0:00:29]} 59. b6 {[%emt 0:00:06]} g4 {[%emt 0:00:04]} 60. b7 {[%emt 0:00:12]} g3 {[%emt 0:00:04]} 61. b8=Q {[%emt 0:00:19]} g2 {[%emt 0:00:04]} 62. Qb3+ {[%emt 0:00:19]} Kh2 {[%emt 0:00:25]} 63. Qc2 {[%emt 0:00:19]} h5 {[%emt 0:00:44]} 64. Qf2 {[%emt 0:00:26]} 1-0

[Event "XXVII RUS-chT Women 2020"]
[Site "Sochi"]
[Date "2020.11.20"]
[Round "2.17"]
[White "Kochukova, Anna"]
[Black "Getman, Tatyana"]
[Result "0-1"]
[ECO "B92"]
[WhiteElo "2111"]
[BlackElo "2303"]
[Annotator "NA"]
[PlyCount "132"]
[EventDate "2020.11.19"]
[EventType "team-tourn"]
[EventCountry "RUS"]
[SourceTitle "playchess.com"]
[Source "ChessBase"]
[SourceQuality "1"]
[TimeControl "40/5400+30:1800+30"]

1. e4 {[%emt 0:00:00]} c5 {[%emt 0:00:00]} 2. Nf3 {[%emt 0:00:00]} Nf6 {[%emt 0:00:00]} 3. Nc3 {[%emt 0:03:41]} d6 {[%emt 0:00:00]} 4. d4 {[%emt 0:00:50]} cxd4 {[%emt 0:00:05]} 5. Nxd4 {[%emt 0:00:24]} a6 {[%emt 0:00:09]} 6. Be2 {[%emt 0:03:33]} e5 {[%emt 0:00:08]} 7. Nb3 {[%emt 0:01:11]} Be7 {[%emt 0:00:08]} 8. Bg5 {[%emt 0:02:00]} Be6 {[%emt 0:00:16]} 9. Bxf6 {[%emt 0:05:53]} Bxf6 {[%emt 0:00:10]} 10. O-O {[%emt 0:00:16]} O-O {[%emt 0:01:02]} 11. Nd5 {[%emt 0:03:43]} Nd7 {[%emt 0:03:25]} 12. c4 {[%emt 0:05:52]} Rc8 $11 {[%emt 0:05:15]} 13. Rc1 {[%emt 0:03:03]} Bg5 {[%emt 0:03:22]} 14. Rc3 {[%emt 0:03:40]} Nb6 {[%emt 0:03:49]} 15. Qd3 {[%emt 0:05:31]} Nxd5 {[%emt 0:15:11]} 16. cxd5 {[%emt 0:07:19]} Bd7 {[%emt 0:00:17]} 17. Rxc8 {[%emt 0:02:44]} Qxc8 {[%emt 0:02:11]} 18. Na5 {[%emt 0:02:44]} Qc7 {[%emt 0:01:57]} 19. Nc4 {[%emt 0:01:23]} Qc5 {[%emt 0:06:04]} 20. Qg3 {[%emt 0:10:04]} h6 {[%emt 0:03:16]} 21. h4 {[%emt 0:03:07]} Be7 {[%emt 0:01:21]} 22. Ne3 {[%emt 0:04:03]} Qd4 {[%emt 0:03:41]} 23. Bg4 {[%emt 0:03:32]} Bxg4 {[%emt 0:03:06]} 24. Qxg4 {[%emt 0:00:56]} h5 {[%emt 0:05:04]} 25. Qxh5 {[%emt 0:11:00]} Qxe4 {[%emt 0:00:20]} 26. g3 {[%emt 0:00:48]} g6 {[%emt 0:04:14]} 27. Qd1 {[%emt 0:02:45]} Rc8 {[%emt 0:03:11]} 28. Qb3 {[%emt 0:01:00]} b5 {[%emt 0:04:16]} 29. Qa3 {[%emt 0:02:41]} Qa4 {[%emt 0:01:18]} 30. Qxa4 {[%emt 0:00:58]} bxa4 {[%emt 0:00:09]} 31. b3 {[%emt 0:01:28]} Rc3 {[%emt 0:01:41]} 32. Rb1 {[%emt 0:03:24]} a3 {[%emt 0:02:23]} 33. Rd1 {[%emt 0:02:18]} a5 {[%emt 0:05:20]} 34. Nc4 {[%emt 0:01:15]} a4 {[%emt 0:00:08]} 35. Nxa3 {[%emt 0:00:11]} axb3 {[%emt 0:00:06]} 36. axb3 {[%emt 0:00:48]} Rxb3 {[%emt 0:00:05]} 37. Nc4 {[%emt 0:00:44]} Rc3 {[%emt 0:00:20]} 38. Ne3 {[%emt 0:02:02]} f5 {[%emt 0:01:03]} 39. Rb1 {[%emt 0:00:59]} f4 {[%emt 0:04:30]} 40. gxf4 {[%emt 0:00:00]} exf4 {[%emt 0:00:00]} 41. Ng4 {[%emt 0:04:22]} Bxh4 {[%emt 0:02:55]} 42. Rb7 {[%emt 0:03:41]} Kf8 {[%emt 0:05:14]} 43. Rb4 {[%emt 0:06:39]} Bg5 {[%emt 0:01:19]} 44. Rb6 {[%emt 0:05:07]} f3 {[%emt 0:03:12]} 45. Rb8+ {[%emt 0:00:49]} Ke7 {[%emt 0:02:04]} 46. Rb7+ {[%emt 0:00:17]} Ke8 {[%emt 0:01:21]} 47. Rb8+ {[%emt 0:00:37]} Kd7 {[%emt 0:00:25]} 48. Rb7+ {[%emt 0:03:46]} Kd8 {[%emt 0:08:45]} 49. Rb8+ {[%emt 0:00:25]} Kc7 {[%emt 0:01:03]} 50. Rf8 {[%emt 0:00:56]} Kd7 {[%emt 0:00:20]} 51. Nh2 {[%emt 0:00:39]} Rc1+ {[%emt 0:00:38]} 52. Nf1 {[%emt 0:00:05]} Rd1 {[%emt 0:00:29]} 53. Rf7+ {[%emt 0:00:58]} Ke8 {[%emt 0:00:24]} 54. Rxf3 {[%emt 0:00:48]} Rxd5 {[%emt 0:00:07]} 55. Kg2 {[%emt 0:00:49]} Ke7 {[%emt 0:00:22]} 56. Ne3 {[%emt 0:03:00]} Rc5 {[%emt 0:00:49]} 57. Kg3 {[%emt 0:01:00]} d5 {[%emt 0:00:56]} 58. Ng2 {[%emt 0:00:13]} d4 {[%emt 0:01:34]} 59. Ne1 {[%emt 0:02:03]} Rc3 {[%emt 0:01:17]} 60. Nd3 {[%emt 0:00:29]} Ke6 {[%emt 0:00:48]} 61. Kg4 {[%emt 0:00:16]} Bd2 {[%emt 0:00:22]} 62. Rh3 {[%emt 0:04:05]} Kd5 {[%emt 0:00:33]} 63. f4 {[%emt 0:00:30]} Be3 {[%emt 0:00:57]} 64. Ne5 {[%emt 0:00:32]} Ke4 {[%emt 0:00:15]} 65. Nxg6 {[%emt 0:00:34]} d3 {[%emt 0:00:14]} 66. Rh1 {[%emt 0:01:08]} d2 {[%emt 0:00:24]} 0-1

[Event "XXVII RUS-chT Women 2020"]
[Site "Sochi"]
[Date "2020.11.20"]
[Round "2.18"]
[White "Nazarova, Anastasia"]
[Black "Zhurova, Anna"]
[Result "0-1"]
[ECO "B33"]
[WhiteElo "2190"]
[BlackElo "2078"]
[Annotator "NA"]
[PlyCount "76"]
[EventDate "2020.11.19"]
[EventType "team-tourn"]
[EventCountry "RUS"]
[SourceTitle "playchess.com"]
[Source "ChessBase"]
[SourceQuality "1"]
[TimeControl "40/5400+30:1800+30"]

1. e4 {[%emt 0:00:00]} c5 {[%emt 0:00:00]} 2. Nf3 {[%emt 0:00:00]} Nc6 {[%emt 0:00:00]} 3. d4 {[%emt 0:00:00]} cxd4 {[%emt 0:00:00]} 4. Nxd4 {[%emt 0:00:00]} Nf6 {[%emt 0:00:00]} 5. Nc3 {[%emt 0:01:09]} g6 {[%emt 0:00:04]} 6. Nxc6 {[%emt 0:10:37]} bxc6 {[%emt 0:00:07]} 7. e5 {[%emt 0:00:03]} Ng8 {[%emt 0:00:09]} 8. Bc4 {[%emt 0:01:25]} Bg7 {[%emt 0:01:25]} 9. Qf3 {[%emt 0:11:19]} f5 {[%emt 0:04:52]} 10. Bf4 {[%emt 0:18:19]} e6 {[%emt 0:13:21]} 11. O-O-O {[%emt 0:02:36]} Qb6 {[%emt 0:01:57]} 12. Nb5 {[%emt 0:06:47]} cxb5 {[%emt 0:23:48]} 13. Qxa8 {[%emt 0:00:06]} Ne7 {[%emt 0:00:05]} 14. Bb3 {[%emt 0:04:51]} a5 {[%emt 0:03:58]} 15. a3 {[%emt 0:09:38]} O-O {[%emt 0:12:09]} 16. Qf3 {[%emt 0:02:33]} Nc6 {[%emt 0:00:47]} 17. Rd6 {[%emt 0:10:06]} Re8 {[%emt 0:07:29]} 18. h4 {[%emt 0:04:23]} a4 {[%emt 0:05:17]} 19. Ba2 {[%emt 0:00:19]} b4 {[%emt 0:00:28]} 20. axb4 {[%emt 0:05:26]} Qxb4 {[%emt 0:00:43]} 21. Qe3 {[%emt 0:01:34]} Qb5 {[%emt 0:02:50]} 22. c4 {[%emt 0:05:15]} Qa5 {[%emt 0:04:16]} 23. c5 {[%emt 0:03:11]} Nb4 {[%emt 0:02:02]} 24. Bc4 {[%emt 0:00:33]} Ba6 {[%emt 0:00:28]} 25. Bxa6 {[%emt 0:01:10]} Nxa6 {[%emt 0:00:01]} 26. c6 {[%emt 0:00:41]} dxc6 {[%emt 0:01:19]} 27. Rhd1 {[%emt 0:00:47]} Nb4 {[%emt 0:00:36]} 28. Kb1 {[%emt 0:00:36]} Nd5 {[%emt 0:01:50]} 29. Qd2 {[%emt 0:00:04]} Qb5 {[%emt 0:00:52]} 30. Ka1 {[%emt 0:00:50]} a3 {[%emt 0:07:42]} 31. Rxd5 {[%emt 0:00:14]} exd5 {[%emt 0:00:23]} 32. bxa3 {[%emt 0:00:14]} Qa4 {[%emt 0:02:50]} 33. Ka2 {[%emt 0:00:50]} Qc4+ {[%emt 0:00:21]} 34. Ka1 {[%emt 0:00:04]} Ra8 {[%emt 0:00:11]} 35. Qe3 {[%emt 0:00:25]} Bf8 {[%emt 0:01:39]} 36. Rd3 {[%emt 0:00:22]} Bc5 {[%emt 0:01:00]} 37. Rc3 {[%emt 0:01:26]} Bd4 {[%emt 0:01:08]} 38. Kb2 {[%emt 0:00:02]} Qb5+ {[%emt 0:00:07]} 0-1

[Event "XXVII RUS-chT Women 2020"]
[Site "Sochi"]
[Date "2020.11.20"]
[Round "2.19"]
[White "Shestakova, Ekaterina"]
[Black "Pogorelskikh, Sofia"]
[Result "1/2-1/2"]
[ECO "B22"]
[WhiteElo "1966"]
[BlackElo "2128"]
[Annotator "NA"]
[PlyCount "81"]
[EventDate "2020.11.19"]
[EventType "team-tourn"]
[EventCountry "RUS"]
[SourceTitle "playchess.com"]
[Source "ChessBase"]
[SourceQuality "1"]
[TimeControl "40/5400+30:1800+30"]

1. e4 {[%emt 0:00:00]} c5 {[%emt 0:00:00]} 2. c3 {[%emt 0:00:00]} Nf6 {[%emt 0:00:00]} 3. e5 {[%emt 0:00:00]} Nd5 {[%emt 0:00:00]} 4. d4 {[%emt 0:00:00]} cxd4 $11 {[%emt 0:00:01]} 5. cxd4 {[%emt 0:00:00]} d6 {[%emt 0:01:16]} 6. Nf3 {[%emt 0:02:16]} Nc6 {[%emt 0:00:19]} 7. Bc4 {[%emt 0:00:20]} dxe5 {[%emt 0:00:49]} 8. dxe5 {[%emt 0:10:02]} Ndb4 {[%emt 0:00:45]} 9. Qxd8+ {[%emt 0:00:45]} Nxd8 {[%emt 0:00:20]} 10. Na3 {[%emt 0:01:04]} Bg4 {[%emt 0:00:52]} 11. Nd4 {[%emt 0:03:45]} Ndc6 {[%emt 0:00:35]} 12. Nxc6 {[%emt 0:01:04]} Nxc6 {[%emt 0:00:17]} 13. f3 {[%emt 0:06:00]} Bf5 {[%emt 0:03:23]} 14. Bf4 {[%emt 0:03:26]} e6 {[%emt 0:02:02]} 15. Rd1 {[%emt 0:01:36]} Bb4+ {[%emt 0:17:41]} 16. Ke2 {[%emt 0:01:50]} O-O {[%emt 0:02:23]} 17. Nb5 {[%emt 0:05:22]} Rfd8 {[%emt 0:11:24]} 18. Rxd8+ {[%emt 0:16:54]} Rxd8 {[%emt 0:00:24]} 19. Rd1 {[%emt 0:00:05]} Rxd1 {[%emt 0:02:06]} 20. Kxd1 {[%emt 0:00:07]} a6 {[%emt 0:03:33]} 21. Nd6 {[%emt 0:07:02]} Bxd6 {[%emt 0:00:57]} 22. exd6 {[%emt 0:00:02]} Kf8 {[%emt 0:01:54]} 23. Be3 {[%emt 0:03:22]} Ke8 {[%emt 0:03:15]} 24. Kd2 {[%emt 0:07:20]} Kd7 {[%emt 0:01:00]} 25. Bc5 {[%emt 0:00:21]} b5 {[%emt 0:10:35]} 26. Be2 {[%emt 0:00:21]} Na5 {[%emt 0:00:50]} 27. Bb4 {[%emt 0:01:44]} Nb7 {[%emt 0:02:27]} 28. a4 {[%emt 0:00:27]} Kc6 {[%emt 0:01:07]} 29. axb5+ {[%emt 0:00:49]} axb5 {[%emt 0:00:09]} 30. g4 {[%emt 0:03:26]} Bg6 {[%emt 0:00:16]} 31. d7 {[%emt 0:01:52]} f5 {[%emt 0:06:59]} 32. Ba5 {[%emt 0:02:16]} Kxd7 {[%emt 0:00:19]} 33. Bxb5+ {[%emt 0:00:06]} Kd6 {[%emt 0:00:16]} 34. Bc3 {[%emt 0:02:16]} fxg4 {[%emt 0:00:22]} 35. fxg4 {[%emt 0:00:07]} e5 {[%emt 0:00:41]} 36. b4 {[%emt 0:00:58]} Kd5 {[%emt 0:01:15]} 37. Ke3 {[%emt 0:01:38]} Nd6 {[%emt 0:00:34]} 38. Be2 {[%emt 0:01:06]} Nc4+ {[%emt 0:03:01]} 39. Kf2 {[%emt 0:04:48]} Be4 {[%emt 0:04:15]} 40. Bxc4+ {[%emt 0:00:00]} Kxc4 {[%emt 0:00:00]} 41. Bxe5 {[%emt 0:01:18]} 1/2-1/2

[Event "XXVII RUS-chT Women 2020"]
[Site "Sochi"]
[Date "2020.11.20"]
[Round "2.20"]
[White "Yurasova, Daria"]
[Black "Lesnykh, Zhanna"]
[Result "1-0"]
[ECO "A80"]
[WhiteElo "2075"]
[BlackElo "1755"]
[Annotator "ChessBase"]
[PlyCount "63"]
[EventDate "2020.11.19"]
[EventType "team-tourn"]
[EventCountry "RUS"]
[SourceTitle "playchess.com"]
[Source "ChessBase"]
[SourceQuality "1"]
[TimeControl "40/5400+30:1800+30"]

1. d4 {[%emt 0:00:00]} f5 {[%emt 0:00:00]} 2. Bg5 {[%emt 0:00:00]} g6 {[%emt 0:00:00]} 3. Nc3 {[%emt 0:02:53]} Bg7 {[%emt 0:00:47]} 4. e3 {[%emt 0:03:20]} Nf6 {[%emt 0:00:25]} 5. h4 {[%emt 0:00:49]} h6 {[%emt 0:05:12]} 6. Bxf6 {[%emt 0:00:13]} Bxf6 {[%emt 0:00:23]} 7. g4 {[%emt 0:00:09]} e6 {[%emt 0:03:16]} 8. Nh3 {[%emt 0:07:10]} Nc6 {[%emt 0:05:52]} 9. gxf5 {[%emt 0:01:13]} exf5 {[%emt 0:00:10]} 10. Nf4 {[%emt 0:00:06]} Ne7 {[%emt 0:07:12]} 11. Nxg6 {[%emt 0:11:04]} Nxg6 {[%emt 0:12:20]} 12. Qh5 {[%emt 0:00:12]} Kf7 {[%emt 0:00:23]} 13. Rg1 {[%emt 0:00:23]} Bg5 {[%emt 0:01:19]} 14. hxg5 {[%emt 0:02:08]} hxg5 {[%emt 0:00:24]} 15. Qxg5 {[%emt 0:00:19]} Qxg5 {[%emt 0:00:23]} 16. Rxg5 {[%emt 0:00:09]} Kf6 {[%emt 0:00:49]} 17. Rg1 {[%emt 0:03:10]} c6 {[%emt 0:00:59]} 18. d5 {[%emt 0:02:40]} Ne5 {[%emt 0:02:33]} 19. O-O-O {[%emt 0:00:52]} Rb8 {[%emt 0:11:19]} 20. e4 {[%emt 0:03:16]} f4 {[%emt 0:04:59]} 21. Ne2 {[%emt 0:05:26]} f3 {[%emt 0:09:30]} 22. Nf4 {[%emt 0:06:15]} Rh4 {[%emt 0:15:08]} 23. Nd3 {[%emt 0:01:41]} Rxe4 {[%emt 0:02:18]} 24. Rg3 {[%emt 0:00:48]} Rg4 {[%emt 0:11:56]} 25. Rh3 {[%emt 0:01:04]} Rg8 {[%emt 0:03:06]} 26. Nxe5 {[%emt 0:00:43]} Kxe5 {[%emt 0:00:05]} 27. Rxf3 {[%emt 0:00:16]} b6 {[%emt 0:01:04]} 28. dxc6 {[%emt 0:02:18]} dxc6 {[%emt 0:00:05]} 29. Re3+ {[%emt 0:00:06]} Kf6 {[%emt 0:00:55]} 30. Rd6+ {[%emt 0:00:28]} Kg7 {[%emt 0:01:23]} 31. Rg3+ {[%emt 0:00:06]} Kh7 {[%emt 0:00:15]} 32. Bd3+ {[%emt 0:00:08]} 1-0

[Event "XXVII RUS-chT Women 2020"]
[Site "Sochi"]
[Date "2020.11.20"]
[Round "2.21"]
[White "Goltseva, Ekaterina"]
[Black "Zherebtsova, Alexandra"]
[Result "1/2-1/2"]
[ECO "D02"]
[WhiteElo "2306"]
[BlackElo "2204"]
[Annotator "NA"]
[PlyCount "80"]
[EventDate "2020.11.19"]
[EventType "team-tourn"]
[EventCountry "RUS"]
[SourceTitle "playchess.com"]
[Source "ChessBase"]
[SourceQuality "1"]
[TimeControl "40/5400+30:1800+30"]

1. Nf3 {[%emt 0:00:00]} d5 {[%emt 0:00:06]} 2. d4 {[%emt 0:00:00]} Nf6 {[%emt 0:00:29]} 3. c4 {[%emt 0:00:05]} e6 {[%emt 0:01:31]} 4. g3 {[%emt 0:00:22]} g6 {[%emt 0:02:44]} 5. Bg2 {[%emt 0:04:03]} Bg7 {[%emt 0:00:32]} 6. O-O {[%emt 0:04:01]} O-O {[%emt 0:02:15]} 7. Qc2 {[%emt 0:11:25]} Ne4 {[%emt 0:23:16]} 8. Nc3 {[%emt 0:02:58]} f5 {[%emt 0:01:59]} 9. Bf4 {[%emt 0:03:05]} Nc6 $14 {[%emt 0:01:58]} 10. Rad1 {[%emt 0:17:07]} g5 {[%emt 0:08:55]} 11. Be5 {[%emt 0:06:52]} Nxe5 {[%emt 0:02:26]} 12. Nxe5 {[%emt 0:00:50]} Nxc3 {[%emt 0:07:40]} 13. bxc3 {[%emt 0:03:07]} c6 {[%emt 0:03:30]} 14. Nd3 {[%emt 0:15:57]} b6 {[%emt 0:08:55]} 15. Nb4 {[%emt 0:10:49]} Bb7 {[%emt 0:01:01]} 16. Qa4 {[%emt 0:03:26]} Qc7 {[%emt 0:03:42]} 17. Nd3 {[%emt 0:03:31]} Rac8 {[%emt 0:09:31]} 18. Rc1 {[%emt 0:01:21]} a6 {[%emt 0:03:03]} 19. Qb3 {[%emt 0:01:41]} b5 {[%emt 0:01:57]} 20. cxd5 {[%emt 0:01:11]} cxd5 {[%emt 0:00:24]} 21. Nc5 {[%emt 0:00:24]} Rfe8 {[%emt 0:02:40]} 22. Nxb7 {[%emt 0:05:13]} Qxb7 {[%emt 0:00:10]} 23. c4 {[%emt 0:00:21]} Rxc4 {[%emt 0:01:04]} 24. Rxc4 {[%emt 0:00:04]} dxc4 {[%emt 0:00:07]} 25. Bxb7 {[%emt 0:00:19]} cxb3 {[%emt 0:00:20]} 26. axb3 {[%emt 0:00:12]} Bxd4 {[%emt 0:02:13]} 27. Bxa6 {[%emt 0:00:23]} b4 {[%emt 0:00:59]} 28. Bc4 {[%emt 0:00:29]} Kf7 {[%emt 0:00:18]} 29. Rd1 {[%emt 0:01:05]} Rd8 {[%emt 0:00:43]} 30. Kg2 {[%emt 0:00:16]} Bf6 {[%emt 0:00:17]} 31. Rxd8 {[%emt 0:00:40]} Bxd8 {[%emt 0:00:05]} 32. h3 {[%emt 0:01:10]} Kf6 {[%emt 0:00:22]} 33. g4 {[%emt 0:01:02]} h6 {[%emt 0:00:29]} 34. Kf3 {[%emt 0:00:43]} Ke5 {[%emt 0:00:47]} 35. e3 {[%emt 0:00:43]} Bb6 {[%emt 0:00:32]} 36. Bd3 {[%emt 0:00:14]} Ba7 {[%emt 0:00:26]} 37. Bc4 {[%emt 0:00:08]} Bb6 {[%emt 0:00:04]} 38. Bd3 {[%emt 0:00:04]} Ba7 {[%emt 0:00:03]} 39. Bc4 {[%emt 0:00:04]} Bb6 {[%emt 0:00:02]} 40. Bd3 {[%emt 0:00:00]} Ba7 {[%emt 0:00:00]} 1/2-1/2

[Event "XXVII RUS-chT Women 2020"]
[Site "Sochi"]
[Date "2020.11.20"]
[Round "2.22"]
[White "Doroshenko, Diana"]
[Black "Vifleemskaia, Svetlana"]
[Result "1-0"]
[ECO "A30"]
[WhiteElo "2204"]
[BlackElo "1911"]
[Annotator "NA"]
[PlyCount "71"]
[EventDate "2020.11.19"]
[EventType "team-tourn"]
[EventCountry "RUS"]
[SourceTitle "playchess.com"]
[Source "ChessBase"]
[SourceQuality "1"]
[TimeControl "40/5400+30:1800+30"]

1. c4 {[%emt 0:00:00]} c5 {[%emt 0:00:00]} 2. Nf3 {[%emt 0:00:00]} Nc6 {[%emt 0:00:45]} 3. e3 {[%emt 0:00:17]} e5 {[%emt 0:02:23]} 4. Nc3 {[%emt 0:02:33]} Nf6 {[%emt 0:01:01]} 5. d4 {[%emt 0:00:24]} cxd4 {[%emt 0:03:07]} 6. exd4 {[%emt 0:00:02]} e4 {[%emt 0:00:55]} 7. Ne5 {[%emt 0:00:08]} Bb4 {[%emt 0:01:55]} 8. Be2 {[%emt 0:00:27]} Qa5 {[%emt 0:00:52]} 9. Nxc6 {[%emt 0:02:51]} bxc6 {[%emt 0:01:19]} 10. Bd2 {[%emt 0:02:00]} O-O {[%emt 0:03:04]} 11. O-O {[%emt 0:02:00]} Re8 {[%emt 0:17:47]} 12. c5 {[%emt 0:24:44]} h6 {[%emt 0:34:34]} 13. a3 {[%emt 0:08:33]} Bxc3 {[%emt 0:00:11]} 14. bxc3 {[%emt 0:00:15]} Qd8 {[%emt 0:08:36]} 15. c4 {[%emt 0:04:14]} d5 {[%emt 0:00:57]} 16. cxd6 {[%emt 0:01:03]} Qxd6 {[%emt 0:00:06]} 17. Be3 {[%emt 0:03:45]} Bf5 {[%emt 0:02:56]} 18. h3 {[%emt 0:07:09]} Nd7 {[%emt 0:06:40]} 19. Qd2 {[%emt 0:02:04]} a5 {[%emt 0:03:34]} 20. Bf4 {[%emt 0:04:16]} Qe7 {[%emt 0:01:04]} 21. Rfd1 {[%emt 0:01:44]} g5 {[%emt 0:00:28]} 22. Be3 {[%emt 0:01:55]} Bg6 {[%emt 0:01:54]} 23. h4 {[%emt 0:01:01]} f6 {[%emt 0:00:55]} 24. a4 {[%emt 0:06:00]} Reb8 {[%emt 0:02:30]} 25. Rdb1 {[%emt 0:02:31]} Qd8 {[%emt 0:02:31]} 26. hxg5 {[%emt 0:04:32]} hxg5 {[%emt 0:00:09]} 27. g3 {[%emt 0:00:29]} Kg7 {[%emt 0:01:16]} 28. Kg2 {[%emt 0:00:18]} Bf5 {[%emt 0:00:38]} 29. Qc3 {[%emt 0:03:46]} Qc7 {[%emt 0:00:20]} 30. Rh1 {[%emt 0:01:29]} Rh8 {[%emt 0:00:58]} 31. Bd2 {[%emt 0:00:47]} Nb6 {[%emt 0:00:44]} 32. Bxg5 {[%emt 0:08:11]} Rxh1 {[%emt 0:00:58]} 33. Rxh1 {[%emt 0:00:05]} fxg5 {[%emt 0:00:39]} 34. d5+ {[%emt 0:00:04]} Kg6 {[%emt 0:00:29]} 35. Bh5+ {[%emt 0:00:10]} Kh7 {[%emt 0:00:29]} 36. Bf7+ {[%emt 0:00:06]} 1-0

[Event "XXVII RUS-chT Women 2020"]
[Site "Sochi"]
[Date "2020.11.20"]
[Round "2.23"]
[White "Zavivaeva, Emilia"]
[Black "Khokhlova, Daria"]
[Result "0-1"]
[ECO "A48"]
[WhiteElo "1790"]
[BlackElo "2196"]
[Annotator "NA"]
[PlyCount "68"]
[EventDate "2020.11.19"]
[EventType "team-tourn"]
[EventCountry "RUS"]
[SourceTitle "playchess.com"]
[Source "ChessBase"]
[SourceQuality "1"]
[TimeControl "40/5400+30:1800+30"]

1. d4 {[%emt 0:00:00]} Nf6 {[%emt 0:00:59]} 2. Nf3 {[%emt 0:00:00]} g6 {[%emt 0:00:10]} 3. e3 {[%emt 0:00:06]} Bg7 {[%emt 0:00:07]} 4. Be2 {[%emt 0:01:03]} d6 {[%emt 0:00:24]} 5. b3 {[%emt 0:00:23]} Nbd7 {[%emt 0:01:18]} 6. Bb2 {[%emt 0:00:22]} b6 {[%emt 0:01:15]} 7. O-O {[%emt 0:00:26]} O-O {[%emt 0:00:18]} 8. c4 {[%emt 0:00:49]} Bb7 {[%emt 0:02:11]} 9. Nbd2 {[%emt 0:00:50]} c5 {[%emt 0:03:24]} 10. d5 {[%emt 0:05:43]} e5 {[%emt 0:02:24]} 11. Qc2 {[%emt 0:06:00]} Ne8 {[%emt 0:01:18]} 12. h4 {[%emt 0:06:17]} f5 {[%emt 0:05:47]} 13. Ng5 {[%emt 0:03:01]} Nc7 {[%emt 0:00:23]} 14. f4 {[%emt 0:03:21]} Qe7 {[%emt 0:02:23]} 15. e4 {[%emt 0:07:06]} h6 {[%emt 0:17:15]} 16. Nh3 {[%emt 0:03:07]} Qxh4 {[%emt 0:03:35]} 17. fxe5 {[%emt 0:02:41]} Nxe5 {[%emt 0:00:56]} 18. exf5 {[%emt 0:05:21]} Bc8 {[%emt 0:14:10]} 19. Rf4 {[%emt 0:10:42]} Qe7 {[%emt 0:03:53]} 20. f6 {[%emt 0:03:11]} Rxf6 {[%emt 0:00:49]} 21. Rxf6 {[%emt 0:03:50]} Qxf6 {[%emt 0:00:15]} 22. Rf1 {[%emt 0:00:50]} Bf5 {[%emt 0:03:24]} 23. Ne4 {[%emt 0:02:50]} Qe7 {[%emt 0:02:44]} 24. Nf4 {[%emt 0:04:02]} Nd7 {[%emt 0:10:04]} 25. Bd3 {[%emt 0:10:13]} Bxb2 {[%emt 0:01:29]} 26. Qxb2 {[%emt 0:01:48]} Bxe4 {[%emt 0:01:27]} 27. Re1 {[%emt 0:02:37]} Nf6 {[%emt 0:10:14]} 28. Nxg6 {[%emt 0:01:18]} Qg7 {[%emt 0:00:25]} 29. Bxe4 {[%emt 0:03:37]} Nxe4 {[%emt 0:00:04]} 30. Qxg7+ {[%emt 0:00:17]} Kxg7 {[%emt 0:00:01]} 31. Ne7 {[%emt 0:00:11]} Nf6 {[%emt 0:06:00]} 32. Nf5+ {[%emt 0:00:18]} Kg6 {[%emt 0:00:04]} 33. Nxd6 {[%emt 0:00:44]} Rd8 {[%emt 0:00:08]} 34. Re7 {[%emt 0:00:59]} Ncxd5 {[%emt 0:00:20]} 0-1